Cogmind - Beta 9.2 @@@ ROGUE MODE // 2019.11.18 @ 19:16:24 Player: Cassie Rose Result: Destroyed by S-10 Pest with Light Assault Rifle Performance ------------- Evolutions (0) 0 Regions Visited (2) 400 Robots Destroyed (41) 205 Value Destroyed (860) 860 Prototype IDs (2) 40 Alien Tech Used (0) 0 Bonus (0) 0 TOTAL SCORE: 1505 Bonus ------- None Cogmind --------- Core Integrity 0/250 Matter 300/300 Energy 265/265 System Corruption 1% Temperature Cool (55) Movement Walking (240) Ox4 Location -10/Mines Parts ------- > --- POWER (1) -------- Improved Ion Engine > --- PROPULSION (2) --- Aluminum Leg > --- UTILITY (2) ------ High-capacity Storage Unit Visual Processing Unit > --- WEAPON (2) ------- Beam Cannon Flail > --- INVENTORY (12) --- Ion Engine Sensor Array Signal Interpreter Signal Interpreter Transport Network Coupler Medium Armor Plating Small Laser Grenade Launcher Grenade Launcher Rocket Launcher Peak State ------------ > --- POWER ------------ Improved Ion Engine > --- PROPULSION ------- Light Treads Light Treads > --- UTILITY ---------- Small Storage Unit Improved Terrain Scanner > --- WEAPON ----------- Assault Rifle Assault Rifle > --- INVENTORY -------- Sensor Array Sensor Array EM Shotgun EM Shotgun Flail Flail [Rating: 10] Favorites ----------- Power Improved Ion Engine Engine Improved Ion Engine Propulsion Light Treads Treads Light Treads Leg Aluminum Leg Utility Sensor Array Device Sensor Array Storage High-capacity Storage Unit Processor Visual Processing Unit Weapon Assault Rifle Energy Gun EM Pulse Gun Energy Cannon Beam Cannon Ballistic Gun Assault Rifle Impact Weapon Flail Build | -11 -10 -10 ------- Run | Scr Mat Min Slots Evolved . | . . . Power . | . . . Propulsion . | . . . Utility . | . . . Weapon . | . . . Parts Attached 32 | 9 19 4 Power 4 | 1 2 1 Engine 4 | 1 2 1 Core . | . . . Reactor . | . . . Propulsion 8 | 2 5 1 Treads 7 | 2 5 . Leg 1 | . . 1 Wheel . | . . . Hover . | . . . Flight . | . . . Utility 12 | 4 7 1 Device 6 | 2 4 . Storage 4 | 1 3 . Processor 2 | 1 . 1 Hackware . | . . . Protection . | . . . Artifact . | . . . Weapon 8 | 2 5 1 Energy Gun 2 | . 2 . Energy Cannon 2 | . 1 1 Ballistic Gun 3 | 2 1 . Ballistic Cannon . | . . . Launcher . | . . . Special Weapon . | . . . Impact Weapon 1 | . 1 . Slashing Weapon . | . . . Piercing Weapon . | . . . Special Melee Weapon . | . . . Unidentified Prototypes . | . . . Parts Lost 11 | . 6 5 Power 1 | . . 1 Propulsion 2 | . . 2 Utility 3 | . 2 1 Weapon 5 | . 4 1 Highest Loss Streak 3 | . 1 3 Average Slot Usage (%) 96 | . 98 89 Engine 14 | . 14 14 Treads 24 | . 28 15 Device 12 | . 13 10 Storage 13 | . 13 14 Processor 1 | . . 3 Energy Gun 3 | . 4 . Energy Cannon 5 | . 2 14 Ballistic Gun 9 | . 12 . Impact Weapon 9 | . 8 14 Naked Turns . | . . . Heaviest Build 45 | 14 45 45 Greatest Support 40 | 40 40 40 Greatest Overweight (x) 14 | . 1 14 Average Overweight (x) . | . . 2 Largest Inventory Capacity 12 | 6 12 12 Average Capacity 10 | 5 10 12 Most Carried 11 | 3 11 11 Average Carried 7 | 1 6 10 Final Capacity 12 | 4 12 12 Final Carried 11 | 2 11 10 Class Distribution -------------------- 100% | Mutant Dominant Class ---------------- Mutant | -10/Materials Mutant | -10/Mines Resources | -11 -10 -10 ----------- Run | Scr Mat Min Matter Collected 858 | 310 513 35 Remotely . | . . . Salvage Created 1361 | 220 890 251 Parts 98 | 25 65 8 Haulers Intercepted 2 | . 2 . Recyclers Shooed . | . . . Parts Field Recycled . | . . . Retrieved Matter . | . . . Parts Self-Destructed . | . . . Prevented . | . . . Kills | -11 -10 -10 ------- Run | Scr Mat Min Combat Hostiles Destroyed 25 | . 19 6 Melee 2 | . . 2 Guns 17 | . 17 . Cannons 5 | . 2 3 Classes Destroyed 8 | 3 5 . Worker 2 | 2 . . Builder 1 | . 1 . Tunneler 6 | 6 . . Hauler 2 | . 2 . Recycler 2 | 1 1 . Watcher 3 | . 3 . Swarmer 7 | . 6 1 Grunt 18 | . 13 5 Best Kill Streak 6 | 6 4 1 Combat Bots Only 3 | . 3 1 Max Kills in Single Turn 1 | 1 1 1 Gunslinging . | . . . Exploded . | . . . Melee 1 | . . 1 Uniques/NPCs Destroyed . | . . . Combat | -11 -10 -10 -------- Run | Scr Mat Min Damage Taken 1683 | . 1029 654 Core 254 | . 130 124 Absorbed by Shields . | . . . Core Remaining (%) 100 | 100 . . Volleys Fired 140 | 16 94 30 Largest 2 | 2 2 1 Hottest 60 | 40 60 60 Shots Fired 185 | 32 123 30 Gun 148 | 32 116 . Cannon 37 | . 7 30 Launcher . | . . . Special . | . . . Kinetic 121 | 32 89 . Thermal 37 | . 7 30 Explosive . | . . . Electromagnetic 27 | . 27 . Robot Hit Streak 13 | 3 13 12 Robot Miss Streak 3 | 2 3 1 Penetration Max . | . . . Secondary Targets 1 | . 1 . Max Gunslinging Chain 1 | . 1 . Shots Hit Robots 151 | 15 96 40 Core Hits 56 | 10 39 7 Critical Hits 1 | . 1 . Critical Kills 1 | . 1 . Critical Parts Destroyed . | . . . Melee Attacks 16 | . 2 14 Impact 16 | . 2 14 Slashing . | . . . Piercing . | . . . Sneak Attacks 2 | . 1 1 Combat Hostiles . | . . . Follow-up Attacks . | . . . Damage Inflicted 2315 | 175 1315 825 Guns 1276 | 175 1101 . Cannons 543 | . 106 437 Explosions 22 | . 22 . Melee 474 | . 86 388 Ramming . | . . . Kinetic 996 | 175 821 . Thermal 565 | . 128 437 Explosive . | . . . Electromagnetic 280 | . 280 . Impact 474 | . 86 388 Slashing . | . . . Piercing . | . . . Highest Corruption 1 | . 1 1 Average Corruption 1 | . 1 1 Corruption Purged . | . . . Effects 7 | . 4 3 Message Errors 5 | . 3 2 Energy Discharges 1 | . . 1 Data Loss (minor) 1 | . 1 . Overload Shots . | . . . Overflow Damage 150 | . 40 110 Projectiles 22 | . . 22 Explosions . | . . . Melee 128 | . 40 88 Knockbacks 2 | . 1 1 Impact 2 | . 1 1 Kinetic . | . . . Secondary . | . . . Self-Inflicted Damage . | . . . Shots . | . . . Rammed . | . . . Targets Rammed . | . . . Kicked . | . . . Crushed . | . . . Highest Temperature 199 | . 84 199 Average Temperature 45 | . 20 71 Received Heat Transfer 666 | . 429 237 Siege Activations . | . . . Robots Corrupted . | . . . Combat Hostiles . | . . . Parts Fried 3 | . 2 1 Impact Corruptions 6 | . 2 4 Robots Melted . | . . . Combat Hostiles . | . . . Parts Melted . | . . . Heat Transferred 1197 | . 272 925 Parts Sabotaged . | . . . Parts Stolen . | . . . Parts Stripped . | . . . Power Chain Reactions 1 | . 1 . Missiles Intercepted . | . . . Alert | -11 -10 -10 ------- Run | Scr Mat Min Peak Influence 165 | 45 165 69 Average Influence 47 | 20 53 38 Maximum Alert Level . | . . . Low Security (%) 100 | 100 100 100 Level 1 . | . . . Level 2 . | . . . Level 3 . | . . . Level 4 . | . . . Level 5 . | . . . High Security . | . . . Max Security . | . . . Squads Dispatched 2 | . 2 . Investigation 2 | . 2 . Extermination . | . . . Reinforcement . | . . . Assault . | . . . Garrison . | . . . Intercept . | . . . Construction Impeded . | . . . Haulers Reinforced . | . . . Stealth | -11 -10 -10 --------- Run | Scr Mat Min Distress Signals . | . . . Communications Jammed . | . . . Distress Signals . | . . . Times Spotted 40 | . 25 15 Peak Tracking Total 3 | . 3 3 Tactical Retreats 6 | . 1 5 Traps | -11 -10 -10 ------- Run | Scr Mat Min Traps Triggered 4 | . 4 . Indirectly . | . . . Trap Hack Attempts . | . . . Triggered . | . . . Disarmed . | . . . Reprogrammed . | . . . Reused . | . . . Traps Extracted . | . . . Installed . | . . . Triggered . | . . . Machines | -11 -10 -10 ---------- Run | Scr Mat Min Machines Disabled . | . . . Max in Single Turn . | . . . Machines Sabotaged . | . . . Garrisons Compromised . | . . . Overloaded Fab Kills . | . . . Fab Network Shutdowns . | . . . Hacking | -11 -10 -10 --------- Run | Scr Mat Min Machines Accessed 6 | . 6 . Terminals 6 | . 6 . Fabricators . | . . . Repair Stations . | . . . Recycling Units . | . . . Scanalyzers . | . . . Garrison Access . | . . . Total Hacks 25 | . 25 . Successful 13 | . 13 . Failed 12 | . 12 . Catastrophic 2 | . 2 . Database Lockouts . | . . . Manual 20 | . 20 . Terminals 25 | . 25 . Fabricators . | . . . Repair Stations . | . . . Recycling Units . | . . . Scanalyzers . | . . . Garrison Access . | . . . Terminal Hacks 7 | . 7 . Record 1 | . 1 . Prototype ID Bank 1 | . 1 . Branch Access Points 1 | . 1 . Unreport Threat 1 | . 1 . Hauler Manifests 1 | . 1 . Zone Layout 2 | . 2 . Fabricator Hacks . | . . . Repair Station Hacks . | . . . Recycling Unit Hacks . | . . . Scanalyzer . | . . . Garrison Access Hacks . | . . . Unauthorized Hacks 18 | . 18 . Terminals 6 | . 6 . Assimilate 1 | . 1 . Botnet 5 | . 5 . Fabricators . | . . . Repair Stations . | . . . Recycling Units . | . . . Scanalyzers . | . . . Garrison Access . | . . . Data Cores Recovered . | . . . Used . | . . . Hacking Detections 6 | . 6 . Full Trace Events 2 | . 2 . Feedback Events . | . . . Feedback Blocked . | . . . Robot Schematics Acquired . | . . . Robots Built . | . . . Matter . | . . . Time . | . . . Total Robot Build Rating . | . . . Part Schematics Acquired . | . . . Parts Built . | . . . Matter . | . . . Time . | . . . Total Part Build Rating . | . . . Parts Repaired . | . . . Time . | . . . Parts Recycled . | . . . Recycled Matter . | . . . Retrieved Matter . | . . . Retrieved Components . | . . . Parts Scanalyzed . | . . . Part Schematics Acquired . | . . . Parts Damaged . | . . . Bothacking | -11 -10 -10 ------------ Run | Scr Mat Min Used RIF Installer . | . . . Robots Hacked . | . . . Non-combat . | . . . Combat . | . . . Robot Hacks Applied . | . . . Relay Couplers Released . | . . . Robots Rewired . | . . . Allies Hacked . | . . . Hacks Repelled . | . . . Allies | -11 -10 -10 -------- Run | Scr Mat Min Total Allies . | . . . Largest Group . | . . . Highest-Rated Group . | . . . Highest-Rated Ally . | . . . Total Orders . | . . . Ally Attacks . | . . . Total Damage . | . . . Kills . | . . . Allies Corrupted . | . . . Allies Melted . | . . . Intel | -11 -10 -10 ------- Run | Scr Mat Min Robot Analysis Total . | . . . Derelict Logs Recovered 3 | . . 3 Drone Launches . | . . . Drone Recoveries . | . . . Exploration | -11 -10 -10 ------------- Run | Scr Mat Min Turns Passed 3441 | 221 2399 821 Spaces Moved 1534 | 94 1112 328 Core 5 | 4 . 1 Treads 1465 | 90 1112 263 Legs 64 | . . 64 Wheels . | . . . Hover . | . . . Flight . | . . . Fastest Speed 50 | 50 160 180 Average Speed 179 | 155 174 201 Slowest Speed 750 | 160 180 750 Overloaded Moves . | . . . Propulsion Burnouts . | . . . Robots Hopped . | . . . Cave-ins Triggered . | . . . Exploration Rate (%) 47 | 5 98 40 Regions Visited 2 Branch Regions 1 Pre-discovered Areas 1 | . . 1 Known Exits Taken 1 | . 1 . Unknown Exits Taken 1 | 1 . . Scrap Searched . | . . . Spaces Dug . | . . . Terrain Destroyed 2 | . 2 . Melee . | . . . Projectile . | . . . AOE 2 | . 2 . Actions | -11 -10 -10 --------- Run | Scr Mat Min Total 2024 | 137 1450 437 Wait 248 | 8 182 58 Move 1532 | 93 1111 328 Hop . | . . . Pick Up 39 | 10 26 3 Fast Attach 2 | . 2 . Attach 17 | 7 6 4 Detach 1 | . 1 . Swap 13 | 2 11 . Drop 16 | 1 15 . Fire 140 | 16 94 30 Melee 16 | . 2 14 Ram . | . . . Kick . | . . . Crush . | . . . Escape Stasis . | . . . Rewire . | . . . Trap . | . . . Miscellaneous . | . . . Route ------- -11/Scrapyard -10/Materials (discovered 5 exits: [*Mat x3] / *Min x2) -10/Mines (discovered 1 exit: [*Mat]) History --------- Turn | Location | Event 7 | -11/Scrapyard | Discovered new exit (range 15) 222 | -11/Scrapyard | Entered Materials 318 | -10/Materials | Build established: Mutant 709 | -10/Materials | Discovered new exit (range 7) 918 | -10/Materials | Discovered new exit (range 17) 918 | -10/Materials | Identified exit to Mines 1343 | -10/Materials | Discovered new exit (range 3) 1653 | -10/Materials | Core integrity fell below 50% 1940 | -10/Materials | Discovered new exit (range 16) 2246 | -10/Materials | Discovered new exit (range 16) 2621 | -10/Materials | Entered Mines 2722 | -10/Mines | Discovered new exit (range 7) 3024 | -10/Mines | Learned location of Zion (-7) 3126 | -10/Mines | Found a hidden stash of uninstalled traps 3147 | -10/Mines | Received a Rocket Launcher from a helpful Derelict 3160 | -10/Mines | Learned 2 Materials zone layouts 3246 | -10/Mines | Core integrity fell below 20% 3297 | -10/Mines | Lost 3 parts (1n1u1w) 3442 | -10/Mines | Destroyed by S-10 Pest with Light Assault Rifle Last Messages --------------- 03147_ 5H-27O(g): "Would you like a rocket launcher? I know I would if I were you, so I'm going to lend you mine." 03147_ 5H-27O(g) slips back into the shadows. 03149_ T-07 Excavator is excavating. 03149_ Acquired Rocket Launcher. 03153_ T-07 Excavator is excavating. 03160_ Acquired derelict log, extracted data. Data stored: Materials zone layouts (x2). 03162_ T-07 Excavator is excavating. 03247_ Lgt. Treads destroyed. 03250_ Destroyed Particle Gun. 03253_ Sensor Array destroyed. 03266_ Beam Cannon destroyed. 03274_ G-34 Mercenary heat short circuits Aluminum Leg. 03277_ G-34 Mercenary destroyed. 03279_ Acquired Aluminum Leg. 03281_ Acquired 25 matter. 03286_ Acquired Ion Engine. 03320_ K-01 Serf collects debris. 03397_ R LNCEB3YH KY9:C3 Z8A/S/ Map ----- +----------------------------------------------------+ | | | | | | | | | | | ?????????????????????????????????????????????????? | | ?????????????????????????????????????????????????? | | ?????????????????????????????????????????????????? | | ?????????????????????????????????????????????????? | | ?????????????????????????????????????????????????? | | ?????????????????????????????????????????????????? | | ?????????????????????????????????????????????????? | | ?????????????????????????????????????????????????? | | ?????????????????????????????????????????????????? | | ?????????????????????????????????????????????????? | | ?????????????????????????????????????????????????? | | ?????????????????????????????????????????????????? | | ?????????????????????????????????????????????????? | | ?????????????????????????????????????????????????? | | ?????????????????????????????????????????????????? | | ?????????????????????????????????????????????????? | | ??????????????????????????????????###????????????? | | ???????????????????????######### ##???????????? | | ???????????????????????# s #???????????? | | ???????????????????????# ss #???????????? | | ???????????????????????# @###### ??????? | | ???????????###########?# #???????? "???????? | | ?????????# #?# #??????????? "???????? | | ???????????####### ### ##?????????????????????? | | ?????????????????## ## ##????????????????????? | | ??????????????????## #????????????????????? | | ???????????????????# #????????????????????? | | ???????????????????# ##????????????????????? | | ???????????????????## ##??????#######????????? | | ????????????????????## u ##???????# #????????? | | ?????????????????????## ##????????## ##????????? | | ??????????????????????# #??????????### #?????????? | | ??????????????????????# #????????????# #?????????? | | ??????????????????????# #????????????# #?????????? | | ??????????????????????# ##???######### ##????????? | | ?????????????????????## ##??# ##???????? | | ?????????????????????# ##?# ###### ##??????? | | ????????????????????## ###&#????# #??????? | | ?????????????????#### &&###### #??????? | | ?????????????????# #??????? | | ?????????????????## ##??????? | | ??????????????????#### #####%####???????? | | ?????????????????????## ##???# #??????????? | | ??????????????????????# ##????# #??????????? | | ??????????????????????## ##?????# #??????????? | +----------------------------------------------------+ Best States ------------- Heat Dissipation 25 Energy Generation 12 Energy Capacity 265 Matter Stores 300 Matter Capacity 300 Sight Range 18 Robot Scan Range 10 Terrain Scan Range 16 Terrain Scan Density 60 Evasion (%) 40 Recoil Reduction 2 Item Schematics ----------------- None Robot Schematics ------------------ None Fabricated ------------ Nothing Alien Tech Used ----------------- None Achievements -------------- None Challenges ------------ None Game ------ Seed TargetShockWarhead Manual? 0 Play Time 00:35:27 Cumulative 19.3 hours Start 2019.11.18 @ 18:41:28 End 2019.11.18 @ 19:16:24 Sessions 1 Manual Loads 0 Difficulty Rogue Special Mode None Game No. 28 Rogue 28 Adventurer 0 Explorer 0 Win Type - Total 0 Types 0/0/0/0/0/0/0 Lore% 20 Gallery% 15 Achievement% 17 Wizard Run 0 Options --------- ASCII 0 Keyboard 0 Movement Mouse Keybinds 0 Fullscreen 1 Font 18/X11 Map View 76x50 Tactical HUD 1 Map Filters NONE Filters LOW_CONTRAST(13,24,33) Steam 1 RUN: 10a2f719-797d-4e1b-a188-442e4eeac859